[Event "11th Arad Open 2018"]
[Site "Arad"]
[Date "2018.08.10"]
[Round "7"]
[White "Morariu, Daniel"]
[Black "Cioara, Andrei-Nestor"]
[Result "0-1"]
[ECO "A03"]
[WhiteElo "1688"]
[BlackElo "2435"]
[Annotator "NA RC"]
[PlyCount "87"]
[EventDate "2018.08.05"]
[EventType "swiss"]
[EventCountry "ROU"]
[SourceTitle "playchess.com"]
[Source "ChessBase"]
[SourceQuality "1"]
[TimeControl "40/5400+30:1800+30"]

1. f4 {[%emt 0:00:00]} d5 {[%emt 0:05:09]} 2. e3 {[%emt 0:00:11]} g6 {[%emt 0:00:51]} 3. Nf3 {[%emt 0:00:31]} Bg7 {[%emt 0:00:05]} 4. c3 {[%emt 0:00:42]} c5 {[%emt 0:02:42]} 5. d4 {[%emt 0:01:28]} Nc6 {[%emt 0:00:11]} 6. Bd3 {[%emt 0:07:07]} Nh6 {[%emt 0:02:04]} 7. O-O {[%emt 0:02:52]} Bf5 {[%emt 0:00:19]} 8. Bxf5 {[%emt 0:07:59]} Nxf5 {[%emt 0:00:04]} 9. Ne5 {[%emt 0:00:52]} O-O {[%emt 0:02:56]} 10. Nxc6 {[%emt 0:01:16]} bxc6 {[%emt 0:00:02]} 11. Qe2 {[%emt 0:08:38]} Qb6 {[%emt 0:07:02]} 12. Kh1 {[%emt 0:12:47]} e6 {[%emt 0:06:40]} 13. Nd2 {[%emt 0:01:53]} cxd4 {[%emt 0:00:33]} 14. exd4 {[%emt 0:01:03]} c5 {[%emt 0:08:41]} 15. dxc5 {[%emt 0:01:58]} Qxc5 {[%emt 0:01:11]} 16. Nb3 {[%emt 0:02:30]} Qc7 {[%emt 0:02:36]} 17. Be3 {[%emt 0:04:21]} Rfb8 {[%emt 0:02:59]} 18. Bg1 {[%emt 0:02:49]} Qc4 {[%emt 0:11:11]} 19. Qd2 {[%emt 0:13:28]} a5 {[%emt 0:02:16]} 20. Nd4 {[%emt 0:12:17]} Nxd4 {[%emt 0:02:11]} 21. Bxd4 {[%emt 0:01:45]} Bxd4 {[%emt 0:00:06]} 22. cxd4 {[%emt 0:01:16]} Qb4 {[%emt 0:00:42]} 23. Rf2 {[%emt 0:02:14]} Rc8 {[%emt 0:05:40]} 24. Qxb4 {[%emt 0:03:41]} axb4 {[%emt 0:00:13]} 25. b3 {[%emt 0:00:30]} Rc3 {[%emt 0:00:24]} 26. Rd1 {[%emt 0:00:33]} h5 {[%emt 0:03:10]} 27. g3 {[%emt 0:03:37]} Kg7 {[%emt 0:00:06]} 28. Kg2 {[%emt 0:01:26]} Kf6 {[%emt 0:00:04]} 29. Rdd2 {[%emt 0:02:14]} Rac8 {[%emt 0:00:54]} 30. Rfe2 {[%emt 0:00:33]} Rc1 {[%emt 0:00:44]} 31. Kh3 {[%emt 0:01:13]} R8c3 {[%emt 0:00:42]} 32. Kh4 {[%emt 0:00:47]} Rf1 {[%emt 0:00:50]} 33. Re5 {[%emt 0:01:21]} Rff3 {[%emt 0:00:31]} 34. Ree2 {[%emt 0:00:14]} Rfd3 {[%emt 0:02:38]} 35. Kh3 {[%emt 0:00:47]} Rxd2 {[%emt 0:03:30]} 36. Rxd2 {[%emt 0:00:05]} Kf5 {[%emt 0:00:03]} 37. Kh4 {[%emt 0:00:25]} f6 {[%emt 0:00:39]} 38. Re2 {[%emt 0:01:03]} Rd3 {[%emt 0:00:28]} 39. Kh3 {[%emt 0:00:19]} Rxd4 {[%emt 0:00:00]} 40. Kg2 {[%emt 0:00:00]} Rd3 {[%emt 0:00:00]} 41. Kf2 {[%emt 0:17:31]} e5 {[%emt 0:18:24]} 42. fxe5 {[%emt 0:01:35]} fxe5 {[%emt 0:00:02]} 43. Rc2 {[%emt 0:00:56]} Rc3 {[%emt 0:00:24]} 44. Rd2 {[%emt 0:02:32]} 0-1

[Event "11th Arad Open 2018"]
[Site "Arad"]
[Date "2018.08.11"]
[Round "8"]
[White "Georgiev, Kiril"]
[Black "Georgescu, Tiberiu-Marian"]
[Result "1/2-1/2"]
[ECO "E10"]
[WhiteElo "2593"]
[BlackElo "2495"]
[Annotator "RC"]
[PlyCount "127"]
[EventDate "2018.08.05"]
[EventType "swiss"]
[EventCountry "ROU"]
[SourceTitle "playchess.com"]
[Source "ChessBase"]
[SourceQuality "1"]
[TimeControl "40/5400+30:1800+30"]

1. d4 {[%emt 0:03:33]} Nf6 {[%emt 0:00:00]} 2. c4 {[%emt 0:00:23]} e6 {[%emt 0:00:00]} 3. Nf3 {[%emt 0:00:27]} d5 {[%emt 0:00:00]} 4. g3 {[%emt 0:00:31]} Bb4+ {[%emt 0:00:00]} 5. Bd2 {[%emt 0:01:01]} Be7 {[%emt 0:00:05]} 6. Bg2 {[%emt 0:00:11]} c6 {[%emt 0:00:46]} 7. Qc2 {[%emt 0:00:38]} Nbd7 {[%emt 0:00:43]} 8. O-O {[%emt 0:01:51]} O-O {[%emt 0:00:07]} 9. Rd1 {[%emt 0:03:17]} b6 {[%emt 0:05:30]} 10. Bf4 {[%emt 0:00:13]} Ba6 {[%emt 0:01:23]} 11. b3 {[%emt 0:01:41]} Rc8 {[%emt 0:02:45]} 12. Nc3 {[%emt 0:00:36]} Qe8 {[%emt 0:08:26]} 13. e4 {[%emt 0:06:01]} dxc4 {[%emt 0:02:10]} 14. Nd2 {[%emt 0:07:24]} e5 {[%emt 0:06:14]} 15. dxe5 {[%emt 0:03:49]} Ng4 {[%emt 0:02:32]} 16. Nxc4 {[%emt 0:00:21]} Bxc4 {[%emt 0:02:12]} 17. bxc4 {[%emt 0:00:08]} Bc5 {[%emt 0:01:44]} 18. Rd2 {[%emt 0:08:26]} Ngxe5 {[%emt 0:04:03]} 19. Rad1 {[%emt 0:01:01]} Qe7 {[%emt 0:00:34]} 20. Na4 {[%emt 0:01:38]} Bb4 {[%emt 0:05:40]} 21. Rd4 {[%emt 0:01:29]} Rfe8 {[%emt 0:23:02]} 22. Qb3 {[%emt 0:05:07]} g5 {[%emt 0:07:41]} 23. Bxg5 {[%emt 0:12:04]} Qxg5 {[%emt 0:00:24]} 24. Qxb4 {[%emt 0:00:06]} c5 {[%emt 0:01:12]} 25. Qd2 {[%emt 0:00:16]} Qxd2 {[%emt 0:13:44]} 26. R4xd2 {[%emt 0:00:12]} Nf8 {[%emt 0:05:18]} 27. Nb2 {[%emt 0:00:50]} Ne6 {[%emt 0:01:33]} 28. f4 {[%emt 0:00:51]} Nc6 {[%emt 0:01:02]} 29. e5 {[%emt 0:01:08]} Ned4 {[%emt 0:00:10]} 30. Kf2 {[%emt 0:00:32]} Rc7 {[%emt 0:01:49]} 31. Na4 {[%emt 0:01:52]} Na5 {[%emt 0:00:59]} 32. Nc3 {[%emt 0:04:51]} Nxc4 {[%emt 0:01:52]} 33. Nd5 {[%emt 0:00:41]} Rc6 {[%emt 0:02:06]} 34. Rxd4 {[%emt 0:04:27]} cxd4 {[%emt 0:00:02]} 35. Ne7+ {[%emt 0:03:20]} Rxe7 {[%emt 0:00:02]} 36. Bxc6 {[%emt 0:00:11]} Rc7 {[%emt 0:00:24]} 37. Be4 {[%emt 0:04:40]} Rd7 {[%emt 0:00:22]} 38. Bc6 {[%emt 0:03:31]} Rd8 {[%emt 0:00:24]} 39. Be4 {[%emt 0:02:46]} b5 {[%emt 0:01:40]} 40. Ke2 {[%emt 0:00:00]} a5 {[%emt 0:00:00]} 41. Rc1 {[%emt 0:17:17]} Nb2 {[%emt 0:19:51]} 42. Bd3 {[%emt 0:05:21]} Na4 {[%emt 0:00:05]} 43. Rc7 {[%emt 0:02:51]} Nc3+ {[%emt 0:01:01]} 44. Kd2 {[%emt 0:00:24]} a4 {[%emt 0:07:23]} 45. Rb7 {[%emt 0:04:06]} a3 {[%emt 0:03:34]} 46. f5 {[%emt 0:12:47]} Nxa2 {[%emt 0:01:34]} 47. Rxb5 {[%emt 0:01:49]} Nc3 {[%emt 0:00:06]} 48. Ra5 {[%emt 0:00:07]} a2 {[%emt 0:00:05]} 49. Bc4 {[%emt 0:01:28]} Ne4+ {[%emt 0:01:31]} 50. Kc2 {[%emt 0:01:21]} Nf2 {[%emt 0:00:02]} 51. Rxa2 {[%emt 0:00:29]} d3+ {[%emt 0:00:05]} 52. Kd2 {[%emt 0:00:14]} Ne4+ {[%emt 0:00:13]} 53. Ke3 {[%emt 0:00:33]} d2 {[%emt 0:01:28]} 54. Be2 {[%emt 0:00:15]} d1=Q {[%emt 0:00:41]} 55. Bxd1 {[%emt 0:00:03]} Nc3 {[%emt 0:00:07]} 56. Bb3 {[%emt 0:01:06]} Nxa2 {[%emt 0:00:21]} 57. Bxa2 {[%emt 0:00:02]} Ra8 {[%emt 0:00:56]} 58. Bc4 {[%emt 0:00:56]} Ra4 {[%emt 0:00:09]} 59. Bd3 {[%emt 0:00:21]} h5 {[%emt 0:00:52]} 60. h4 {[%emt 0:01:12]} Kg7 {[%emt 0:00:32]} 61. f6+ {[%emt 0:02:47]} Kh6 {[%emt 0:00:32]} 62. Be4 {[%emt 0:00:09]} Ra5 {[%emt 0:00:28]} 63. Kf4 {[%emt 0:00:56]} Rxe5 {[%emt 0:00:12]} 64. Kxe5 {[%emt 0:00:27]} 1/2-1/2

[Event "11th Arad Open 2018"]
[Site "Arad"]
[Date "2018.08.11"]
[Round "8"]
[White "Aczel, Gergely"]
[Black "Costachi, Mihnea"]
[Result "0-1"]
[ECO "E81"]
[WhiteElo "2551"]
[BlackElo "2453"]
[Annotator "ChessBase"]
[PlyCount "88"]
[EventDate "2018.08.05"]
[EventType "swiss"]
[EventCountry "ROU"]
[SourceTitle "playchess.com"]
[Source "ChessBase"]
[SourceQuality "1"]
[TimeControl "40/5400+30:1800+30"]

1. d4 {[%emt 0:00:00]} Nf6 {[%emt 0:00:34]} 2. c4 {[%emt 0:00:00]} g6 {[%emt 0:00:53]} 3. Nc3 {[%emt 0:00:00]} Bg7 {[%emt 0:00:04]} 4. e4 {[%emt 0:00:00]} d6 {[%emt 0:00:07]} 5. f3 {[%emt 0:00:00]} O-O {[%emt 0:00:54]} 6. Be3 {[%emt 0:00:00]} c5 {[%emt 0:01:13]} 7. Nge2 {[%emt 0:00:05]} Nc6 {[%emt 0:00:13]} 8. d5 {[%emt 0:00:06]} Ne5 {[%emt 0:00:05]} 9. Ng3 {[%emt 0:00:05]} e6 {[%emt 0:02:44]} 10. Be2 {[%emt 0:00:09]} exd5 {[%emt 0:00:06]} 11. cxd5 {[%emt 0:00:05]} b5 {[%emt 0:03:01]} 12. Nxb5 {[%emt 0:10:52]} Rb8 {[%emt 0:02:27]} 13. Qd2 {[%emt 0:03:34]} h5 {[%emt 0:02:25]} 14. O-O {[%emt 0:02:43]} h4 {[%emt 0:00:59]} 15. Nh1 {[%emt 0:00:05]} h3 {[%emt 0:00:04]} 16. Nc3 {[%emt 0:26:04]} hxg2 {[%emt 0:01:43]} 17. Kxg2 {[%emt 0:00:20]} Nh5 {[%emt 0:03:40]} 18. Rab1 {[%emt 0:03:38]} Rb4 {[%emt 0:14:55]} 19. Nf2 {[%emt 0:06:48]} f5 {[%emt 0:03:18]} 20. Bg5 {[%emt 0:07:49]} Bf6 {[%emt 0:08:33]} 21. Bh6 {[%emt 0:06:26]} Rd4 {[%emt 0:02:50]} 22. Qc1 {[%emt 0:00:50]} Bg7 {[%emt 0:04:49]} 23. Bg5 {[%emt 0:00:25]} Bf6 {[%emt 0:00:28]} 24. Bh6 {[%emt 0:00:21]} Nf7 {[%emt 0:21:18]} 25. Be3 {[%emt 0:07:53]} Rb4 {[%emt 0:03:03]} 26. Rg1 {[%emt 0:03:30]} f4 {[%emt 0:02:46]} 27. Bd2 {[%emt 0:01:47]} Bd4 {[%emt 0:00:17]} 28. Qe1 {[%emt 0:07:58]} Qg5+ {[%emt 0:03:16]} 29. Kh1 {[%emt 0:00:12]} Qh4 {[%emt 0:00:22]} 30. Nd3 {[%emt 0:02:04]} Ng3+ {[%emt 0:02:47]} 31. Rxg3 {[%emt 0:01:01]} fxg3 {[%emt 0:00:07]} 32. Qxg3 {[%emt 0:00:04]} Qxg3 {[%emt 0:00:15]} 33. hxg3 {[%emt 0:00:02]} Rb7 {[%emt 0:04:25]} 34. Nf4 {[%emt 0:00:02]} Ne5 {[%emt 0:01:04]} 35. Kg2 {[%emt 0:01:03]} g5 {[%emt 0:05:22]} 36. Ne6 {[%emt 0:00:02]} Bxe6 {[%emt 0:00:11]} 37. dxe6 {[%emt 0:00:02]} Nxf3 {[%emt 0:00:11]} 38. e7 {[%emt 0:11:16]} Rxe7 {[%emt 0:00:26]} 39. Bxf3 {[%emt 0:00:25]} Ref7 {[%emt 0:03:25]} 40. Bf4 {[%emt 0:00:00]} gxf4 {[%emt 0:00:00]} 41. e5 {[%emt 0:18:33]} dxe5 {[%emt 0:19:11]} 42. Bd5 {[%emt 0:00:13]} f3+ {[%emt 0:00:26]} 43. Kf1 {[%emt 0:05:43]} Kg7 {[%emt 0:00:55]} 44. Bxf7 {[%emt 0:00:18]} Rh8 {[%emt 0:00:58]} 0-1

[Event "11th Arad Open 2018"]
[Site "Arad"]
[Date "2018.08.11"]
[Round "8"]
[White "Jianu, Vlad-Cristian"]
[Black "Womacka, Mathias"]
[Result "1-0"]
[ECO "A62"]
[WhiteElo "2542"]
[BlackElo "2450"]
[Annotator "ChessBase"]
[PlyCount "97"]
[EventDate "2018.08.05"]
[EventType "swiss"]
[EventCountry "ROU"]
[SourceTitle "playchess.com"]
[Source "ChessBase"]
[SourceQuality "1"]
[TimeControl "40/5400+30:1800+30"]

1. d4 {[%emt 0:00:00]} Nf6 {[%emt 0:00:00]} 2. c4 {[%emt 0:00:00]} e6 {[%emt 0:00:00]} 3. g3 {[%emt 0:00:00]} c5 {[%emt 0:00:10]} 4. d5 {[%emt 0:00:06]} exd5 {[%emt 0:00:14]} 5. cxd5 {[%emt 0:00:08]} d6 {[%emt 0:00:14]} 6. Nc3 {[%emt 0:00:14]} g6 {[%emt 0:00:14]} 7. Bg2 {[%emt 0:00:07]} Bg7 {[%emt 0:00:10]} 8. Nf3 {[%emt 0:00:08]} O-O {[%emt 0:00:54]} 9. O-O {[%emt 0:00:08]} Re8 {[%emt 0:01:35]} 10. Bf4 {[%emt 0:00:28]} Ne4 {[%emt 0:00:50]} 11. Nxe4 {[%emt 0:00:13]} Rxe4 {[%emt 0:00:06]} 12. Nd2 {[%emt 0:00:05]} Rxf4 {[%emt 0:00:41]} 13. gxf4 {[%emt 0:00:08]} Bxb2 {[%emt 0:00:06]} 14. Rb1 {[%emt 0:00:04]} Bg7 {[%emt 0:00:11]} 15. e4 {[%emt 0:00:06]} Nd7 {[%emt 0:03:54]} 16. Qf3 {[%emt 0:00:20]} b5 {[%emt 0:03:12]} 17. Rfe1 {[%emt 0:00:19]} Rb8 {[%emt 0:03:36]} 18. Qg3 {[%emt 0:07:56]} Qc7 {[%emt 0:05:46]} 19. Nf3 {[%emt 0:07:39]} Nf6 {[%emt 0:07:05]} 20. Qh4 {[%emt 0:30:24]} Nh5 {[%emt 0:03:10]} 21. f5 {[%emt 0:02:47]} Bd7 {[%emt 0:07:36]} 22. fxg6 {[%emt 0:10:28]} hxg6 {[%emt 0:32:03]} 23. Qg5 {[%emt 0:00:59]} Re8 {[%emt 0:06:51]} 24. Rbd1 {[%emt 0:04:43]} c4 {[%emt 0:00:43]} 25. Qe3 {[%emt 0:14:06]} Nf6 {[%emt 0:07:57]} 26. Ng5 {[%emt 0:04:08]} Qd8 {[%emt 0:09:11]} 27. h3 {[%emt 0:07:13]} a5 {[%emt 0:01:06]} 28. f4 {[%emt 0:01:18]} Bh6 {[%emt 0:01:06]} 29. Rf1 {[%emt 0:02:27]} Qe7 {[%emt 0:01:48]} 30. e5 {[%emt 0:02:27]} Nh5 {[%emt 0:02:11]} 31. e6 {[%emt 0:00:50]} fxe6 {[%emt 0:00:51]} 32. dxe6 {[%emt 0:00:53]} Bxg5 {[%emt 0:00:05]} 33. fxg5 {[%emt 0:00:05]} Bxe6 {[%emt 0:00:06]} 34. Rde1 {[%emt 0:01:09]} Qd7 {[%emt 0:00:52]} 35. Qb6 {[%emt 0:03:06]} Ng3 {[%emt 0:00:27]} 36. Bc6 {[%emt 0:00:35]} Qd8 {[%emt 0:00:50]} 37. Qxd8 {[%emt 0:00:53]} Rxd8 {[%emt 0:00:06]} 38. Rxe6 {[%emt 0:01:10]} Nxf1 {[%emt 0:00:06]} 39. Kxf1 {[%emt 0:00:06]} Rf8+ {[%emt 0:00:50]} 40. Rf6 {[%emt 0:00:00]} c3 {[%emt 0:00:00]} 41. Bd5+ {[%emt 0:21:26]} Kg7 {[%emt 0:17:17]} 42. Rxf8 {[%emt 0:00:03]} Kxf8 {[%emt 0:00:09]} 43. Ke2 {[%emt 0:00:02]} b4 {[%emt 0:00:36]} 44. Bb3 {[%emt 0:00:48]} Ke7 {[%emt 0:00:22]} 45. h4 {[%emt 0:00:08]} d5 {[%emt 0:00:42]} 46. Kd3 {[%emt 0:05:59]} Ke6 {[%emt 0:00:31]} 47. Kd4 {[%emt 0:00:05]} Kf5 {[%emt 0:00:16]} 48. Kxd5 {[%emt 0:00:34]} Kg4 {[%emt 0:00:07]} 49. Ke4 1-0

[Event "11th Arad Open 2018"]
[Site "Arad"]
[Date "2018.08.11"]
[Round "8"]
[White "Balog, Imre"]
[Black "Mastrovasilis, Dimitrios"]
[Result "1/2-1/2"]
[ECO "D43"]
[WhiteElo "2540"]
[BlackElo "2586"]
[Annotator "ChessBase"]
[PlyCount "134"]
[EventDate "2018.08.05"]
[EventType "swiss"]
[EventCountry "ROU"]
[SourceTitle "playchess.com"]
[Source "ChessBase"]
[SourceQuality "1"]
[TimeControl "40/5400+30:1800+30"]

1. d4 {[%emt 0:04:56]} d5 {[%emt 0:00:00]} 2. Nf3 {[%emt 0:00:10]} Nf6 {[%emt 0:00:00]} 3. c4 {[%emt 0:00:06]} c6 {[%emt 0:00:10]} 4. Nc3 {[%emt 0:00:47]} e6 {[%emt 0:03:04]} 5. Bg5 {[%emt 0:02:19]} h6 {[%emt 0:00:33]} 6. Bxf6 {[%emt 0:00:24]} Qxf6 {[%emt 0:00:10]} 7. e3 {[%emt 0:00:04]} Nd7 {[%emt 0:03:40]} 8. Qc2 {[%emt 0:00:40]} Bb4 {[%emt 0:11:00]} 9. a3 {[%emt 0:01:52]} Bxc3+ {[%emt 0:00:25]} 10. Qxc3 {[%emt 0:00:15]} O-O {[%emt 0:00:13]} 11. Bd3 {[%emt 0:06:24]} Re8 {[%emt 0:12:45]} 12. cxd5 {[%emt 0:03:27]} exd5 {[%emt 0:00:14]} 13. O-O {[%emt 0:00:27]} Nb6 {[%emt 0:08:14]} 14. a4 {[%emt 0:01:30]} a5 {[%emt 0:18:58]} 15. b4 {[%emt 0:01:23]} Bf5 {[%emt 0:01:25]} 16. Bxf5 {[%emt 0:08:53]} Qxf5 {[%emt 0:00:12]} 17. Nd2 {[%emt 0:00:23]} axb4 {[%emt 0:18:19]} 18. Qxb4 {[%emt 0:00:42]} Ra6 {[%emt 0:00:37]} 19. a5 {[%emt 0:13:34]} Rea8 {[%emt 0:00:35]} 20. Nb3 {[%emt 0:01:07]} Nc4 {[%emt 0:00:33]} 21. Qxb7 {[%emt 0:03:02]} Qc8 {[%emt 0:00:27]} 22. Qxc8+ {[%emt 0:05:03]} Rxc8 {[%emt 0:00:02]} 23. Rfc1 {[%emt 0:00:20]} Rb8 {[%emt 0:01:31]} 24. Rc3 {[%emt 0:00:36]} Kf8 {[%emt 0:02:59]} 25. h4 {[%emt 0:03:52]} Ke7 {[%emt 0:00:31]} 26. Kh2 {[%emt 0:01:37]} Rb5 {[%emt 0:06:34]} 27. Ra4 {[%emt 0:02:04]} Nb6 {[%emt 0:03:30]} 28. Ra2 {[%emt 0:00:46]} Nc4 {[%emt 0:00:30]} 29. Kg3 {[%emt 0:01:58]} Kd6 {[%emt 0:00:34]} 30. f3 {[%emt 0:01:04]} Kc7 {[%emt 0:02:43]} 31. e4 {[%emt 0:01:31]} dxe4 {[%emt 0:03:05]} 32. fxe4 {[%emt 0:00:05]} Nd6 {[%emt 0:01:05]} 33. Re2 {[%emt 0:03:17]} f5 {[%emt 0:00:33]} 34. exf5 {[%emt 0:01:09]} Nxf5+ {[%emt 0:00:12]} 35. Kh3 {[%emt 0:00:42]} Rb4 {[%emt 0:01:07]} 36. Re4 {[%emt 0:01:46]} h5 {[%emt 0:00:36]} 37. g4 {[%emt 0:01:33]} hxg4+ {[%emt 0:00:28]} 38. Kxg4 {[%emt 0:00:07]} Nh6+ {[%emt 0:00:46]} 39. Kf4 {[%emt 0:00:26]} Kd6 {[%emt 0:00:33]} 40. Rg3 {[%emt 0:00:00]} Ra7 {[%emt 0:00:00]} 41. Re5 {[%emt 0:21:28]} Rf7+ {[%emt 0:21:52]} 42. Ke4 {[%emt 0:01:02]} Rf1 {[%emt 0:01:10]} 43. Rg6+ {[%emt 0:04:24]} Rf6 {[%emt 0:00:13]} 44. Rxf6+ {[%emt 0:00:45]} gxf6 {[%emt 0:00:02]} 45. Rh5 {[%emt 0:00:23]} f5+ {[%emt 0:01:28]} 46. Kd3 {[%emt 0:03:13]} Rxb3+ {[%emt 0:02:00]} 47. Kc4 {[%emt 0:01:40]} Ra3 {[%emt 0:00:24]} 48. Rxh6+ {[%emt 0:02:18]} Kc7 {[%emt 0:00:08]} 49. Rh7+ {[%emt 0:11:59]} Kd6 {[%emt 0:00:11]} 50. Ra7 {[%emt 0:00:53]} f4 {[%emt 0:01:15]} 51. a6 {[%emt 0:02:22]} f3 {[%emt 0:01:00]} 52. Rf7 {[%emt 0:00:05]} Ra4+ {[%emt 0:01:10]} 53. Kd3 {[%emt 0:00:39]} Rxa6 {[%emt 0:01:21]} 54. Rxf3 {[%emt 0:00:19]} Ra1 {[%emt 0:00:53]} 55. Ke4 {[%emt 0:00:22]} c5 {[%emt 0:01:27]} 56. dxc5+ {[%emt 0:01:40]} Kxc5 {[%emt 0:00:02]} 57. Kf5 {[%emt 0:00:11]} Kd6 {[%emt 0:00:21]} 58. Kf6 {[%emt 0:00:13]} Kd7 {[%emt 0:03:09]} 59. Kf7 {[%emt 0:00:17]} Rh1 {[%emt 0:00:50]} 60. Rf4 {[%emt 0:01:18]} Kd6 {[%emt 0:00:02]} 61. Kf6 {[%emt 0:00:04]} Kd7 {[%emt 0:00:16]} 62. Kf7 {[%emt 0:03:48]} Kd6 {[%emt 0:00:07]} 63. Kg6 {[%emt 0:00:04]} Ke7 {[%emt 0:00:53]} 64. Rf7+ {[%emt 0:02:33]} Ke6 {[%emt 0:00:32]} 65. Rh7 {[%emt 0:02:16]} Rg1+ {[%emt 0:00:11]} 66. Kh6 {[%emt 0:00:03]} Kf6 {[%emt 0:01:05]} 67. h5 {[%emt 0:00:14]} Rg8 {[%emt 0:00:28]} 1/2-1/2

[Event "11th Arad Open 2018"]
[Site "Arad"]
[Date "2018.08.11"]
[Round "8"]
[White "Deepan Chakkravarthy J."]
[Black "Gavrilescu, David"]
[Result "1-0"]
[ECO "A06"]
[WhiteElo "2530"]
[BlackElo "2468"]
[Annotator "ChessBase"]
[PlyCount "65"]
[EventDate "2018.08.05"]
[EventType "swiss"]
[EventCountry "ROU"]
[SourceTitle "playchess.com"]
[Source "ChessBase"]
[SourceQuality "1"]
[TimeControl "40/5400+30:1800+30"]

1. Nf3 {[%emt 0:04:09]} d5 {[%emt 0:00:00]} 2. g3 {[%emt 0:00:06]} Nf6 {[%emt 0:00:34]} 3. Bg2 {[%emt 0:00:04]} c5 {[%emt 0:00:37]} 4. O-O {[%emt 0:00:18]} e6 {[%emt 0:00:31]} 5. c4 {[%emt 0:01:37]} d4 {[%emt 0:00:33]} 6. d3 {[%emt 0:01:44]} h6 {[%emt 0:02:43]} 7. b4 {[%emt 0:07:53]} cxb4 {[%emt 0:01:37]} 8. a3 {[%emt 0:00:04]} bxa3 {[%emt 0:05:41]} 9. Nbd2 {[%emt 0:00:28]} Nc6 {[%emt 0:01:21]} 10. Qa4 {[%emt 0:01:35]} Bd7 {[%emt 0:04:01]} 11. Bxa3 {[%emt 0:02:55]} Bxa3 {[%emt 0:08:28]} 12. Qxa3 {[%emt 0:00:45]} Qe7 {[%emt 0:01:11]} 13. Nb3 {[%emt 0:11:16]} e5 {[%emt 0:12:33]} 14. Na5 {[%emt 0:01:40]} Qxa3 {[%emt 0:08:54]} 15. Rxa3 {[%emt 0:00:19]} O-O {[%emt 0:01:25]} 16. Nxb7 {[%emt 0:12:28]} Rab8 {[%emt 0:10:22]} 17. Na5 {[%emt 0:00:32]} Rb2 {[%emt 0:03:17]} 18. Nxc6 {[%emt 0:05:50]} Bxc6 {[%emt 0:00:46]} 19. Re1 {[%emt 0:11:34]} Bxf3 {[%emt 0:13:40]} 20. Bxf3 {[%emt 0:00:41]} Re8 {[%emt 0:01:43]} 21. Rxa7 {[%emt 0:00:06]} e4 {[%emt 0:00:21]} 22. dxe4 {[%emt 0:04:51]} Nxe4 {[%emt 0:02:15]} 23. Rd7 {[%emt 0:06:19]} Rd2 {[%emt 0:07:28]} 24. h4 {[%emt 0:06:08]} g6 {[%emt 0:06:23]} 25. Ra1 {[%emt 0:03:49]} Nf6 {[%emt 0:03:54]} 26. Rc7 {[%emt 0:00:42]} d3 {[%emt 0:01:37]} 27. exd3 {[%emt 0:00:33]} Rxd3 {[%emt 0:00:05]} 28. Kg2 {[%emt 0:00:22]} Rc3 {[%emt 0:01:27]} 29. Raa7 {[%emt 0:02:38]} Rf8 {[%emt 0:00:07]} 30. c5 {[%emt 0:00:21]} g5 {[%emt 0:00:05]} 31. hxg5 {[%emt 0:02:14]} hxg5 {[%emt 0:00:01]} 32. g4 {[%emt 0:02:23]} Rc4 {[%emt 0:01:08]} 33. c6 {[%emt 0:00:09]} 1-0

[Event "11th Arad Open 2018"]
[Site "Arad"]
[Date "2018.08.11"]
[Round "8"]
[White "Swayams, Mishra"]
[Black "Posedaru, Bogdan"]
[Result "1-0"]
[ECO "D02"]
[WhiteElo "2467"]
[BlackElo "2326"]
[Annotator "ChessBase"]
[PlyCount "85"]
[EventDate "2018.08.05"]
[EventType "swiss"]
[EventCountry "ROU"]
[SourceTitle "playchess.com"]
[Source "ChessBase"]
[SourceQuality "1"]
[TimeControl "40/5400+30:1800+30"]

1. d4 {[%emt 0:11:10]} d5 {[%emt 0:00:00]} 2. Nf3 {[%emt 0:00:26]} e6 {[%emt 0:00:00]} 3. Bf4 {[%emt 0:00:13]} c5 {[%emt 0:00:26]} 4. e3 {[%emt 0:00:41]} Nf6 {[%emt 0:00:19]} 5. c3 {[%emt 0:00:26]} Nc6 {[%emt 0:00:47]} 6. Nbd2 {[%emt 0:00:43]} cxd4 {[%emt 0:02:03]} 7. exd4 {[%emt 0:00:06]} Nh5 {[%emt 0:00:29]} 8. Be3 {[%emt 0:00:51]} Bd6 {[%emt 0:00:49]} 9. Ne5 {[%emt 0:00:24]} g6 {[%emt 0:02:26]} 10. g4 {[%emt 0:00:27]} Ng7 {[%emt 0:00:19]} 11. h4 {[%emt 0:00:06]} h5 {[%emt 0:00:05]} 12. Bg5 {[%emt 0:00:15]} Qb6 {[%emt 0:00:18]} 13. Bf6 {[%emt 0:00:08]} Kf8 {[%emt 0:00:04]} 14. Nb3 {[%emt 0:00:57]} a5 {[%emt 0:02:55]} 15. Rb1 {[%emt 0:27:54]} Rh7 {[%emt 0:30:12]} 16. Bd3 {[%emt 0:08:44]} a4 {[%emt 0:05:33]} 17. Nd2 {[%emt 0:00:38]} Nxe5 {[%emt 0:04:07]} 18. dxe5 {[%emt 0:00:34]} Bc5 {[%emt 0:00:03]} 19. Rh2 {[%emt 0:04:51]} hxg4 {[%emt 0:07:07]} 20. Qxg4 {[%emt 0:00:14]} Nh5 {[%emt 0:00:51]} 21. Bg5 {[%emt 0:02:01]} Qc7 {[%emt 0:03:18]} 22. Nf3 {[%emt 0:01:29]} a3 {[%emt 0:00:11]} 23. b4 {[%emt 0:00:52]} f5 {[%emt 0:03:54]} 24. Qg1 {[%emt 0:02:47]} Bb6 {[%emt 0:02:20]} 25. Bd2 {[%emt 0:01:33]} Rg7 {[%emt 0:03:42]} 26. Rc1 {[%emt 0:04:18]} Ke8 {[%emt 0:01:25]} 27. Rg2 {[%emt 0:01:07]} Qf7 {[%emt 0:02:28]} 28. Be2 {[%emt 0:12:05]} Bc7 {[%emt 0:15:36]} 29. c4 {[%emt 0:05:14]} d4 {[%emt 0:00:04]} 30. Rd1 {[%emt 0:01:18]} d3 {[%emt 0:03:42]} 31. Bxd3 {[%emt 0:00:12]} Bd7 {[%emt 0:00:25]} 32. b5 {[%emt 0:01:11]} Ba5 {[%emt 0:00:09]} 33. Bxa5 {[%emt 0:02:57]} Rxa5 {[%emt 0:00:05]} 34. Rh2 {[%emt 0:01:02]} Qe7 {[%emt 0:00:16]} 35. Qg5 {[%emt 0:00:12]} b6 {[%emt 0:02:14]} 36. Be2 {[%emt 0:01:38]} Qxg5 {[%emt 0:01:44]} 37. hxg5 {[%emt 0:00:09]} Ra4 {[%emt 0:00:51]} 38. Nd4 {[%emt 0:01:12]} Nf4 {[%emt 0:00:15]} 39. Rh8+ {[%emt 0:00:19]} Ke7 {[%emt 0:00:15]} 40. Nc6+ {[%emt 0:00:00]} Bxc6 {[%emt 0:00:00]} 41. bxc6 {[%emt 0:15:46]} Ra7 {[%emt 0:15:24]} 42. Rdd8 {[%emt 0:00:10]} Rc7 {[%emt 0:00:43]} 43. Rde8+ {[%emt 0:00:11]} 1-0